bitfinex/quotes_ETHUSD_20220308
["timestamp","ask_amount","ask_price","bid_price","bid_amount"]
[1646738683972,3.0405,2589.8,2588.8,1.57878512]
[1646738684171,0.92130634,2589.2,2588.8,1.57878512]
[1646738684372,0.92130634,2589.2,2588.8,1.87878512]
[1646738684571,0.92130634,2589.2,2588.9,1.57878512]
[1646738684772,3.0405,2589.8,2588.9,1.57878512]
[1646738684973,0.00323208,2589.4,2588.9,1.57878512]
[1646738685774,2.0405,2589.8,2588.9,1.57878512]
[1646738685972,0.00323208,2589.3,2588.9,1.57878512]
[1646738686372,0.00323208,2589.3,2588.8,1.56601]
[1646738686573,0.00323208,2589.3,2588.8,2.2320171]
[1646738686773,0.00323208,2589.3,2588.8,2.5320171]
[1646738686972,1.0320217,2589.4,2588.8,2.5320171]
[1646738687215,0.00323208,2589.2,2588.9,1.57882237]
[1646738688016,0.00323208,2589.2,2588.8,2.5320171]
[1646738688215,1.0320217,2589.4,2588.8,2.5320171]
[1646738688421,0.00325178,2589.2,2588.9,1.5788126]
[1646738688618,0.00325178,2589.2,2588.9,2.5447626]
[1646738688819,0.00325178,2589.2,2589.0,1.5788126]
[1646738689219,0.00325178,2589.2,2589.0,0.3]
[1646738689419,1.1884,2589.8,2589.0,0.3]
[1646738689618,0.00325178,2589.2,2589.1,0.96593]
[1646738690622,1.1884,2589.8,2589.1,0.96593]
[1646738690623,2.18720141,2589.8,2589.1,0.96593]
[1646738690877,0.00325178,2589.3,2589.2,0.96589]
[1646738691869,2.18720141,2589.8,2589.3,0.96589]
[1646738692068,0.00324876,2589.4,2589.3,0.96589]
[1646738693068,0.99880141,2589.8,2589.3,0.96589]
[1646738693272,0.00324876,2589.5,2589.3,0.96589]
[1646738693874,0.00324876,2589.5,2589.3,1.26589]
[1646738694273,0.00096,2590.0,2589.3,1.26589]
[1646738694473,0.00324876,2589.5,2589.3,1.26589]
[1646738695417,0.00096,2590.0,2589.3,1.26589]
[1646738695621,0.94036844,2590.1,2589.5,0.96582]
[1646738696922,0.0032492,2589.9,2589.3,0.96586]
[1646738697323,0.0032492,2589.9,2589.3,0.3]
[1646738697523,0.0032492,2589.9,2589.3,0.6]
[1646738697725,0.94036844,2590.0,2589.3,0.3]
[1646738698124,0.0032492,2589.7,2589.2,1.93164]
[1646738698968,0.466,2590.0,2589.2,1.93164]
[1646738698969,2.79246844,2590.0,2589.2,1.93164]
[1646738699167,2.79246844,2590.0,2589.2,2.89754]
[1646738699368,0.0032492,2589.6,2589.3,1.57860838]
[1646738700269,0.94036844,2589.9,2589.4,0.96585]
[1646738700472,0.0032491,2589.6,2589.4,0.96585]
[1646738701374,0.94036844,2589.9,2589.4,0.96585]
[1646738701571,0.0032491,2589.6,2589.2,3.86329]
[1646738701770,0.0032491,2589.6,2589.2,4.16329]
[1646738702618,0.94036844,2589.7,2589.2,2.23165]
[1646738702817,0.0032491,2589.5,2589.2,1.93165]
[1646738703821,0.94036844,2589.7,2589.5,0.01886203]
[1646738704123,3.26625296,2590.0,2589.5,0.01886203]
[1646738704124,0.94036844,2589.8,2589.5,0.01886203]
[1646738705022,0.94036844,2589.7,2589.5,0.01886203]
[1646738706264,0.94036844,2589.8,2589.5,0.01886203]
[1646738706464,0.00324913,2589.7,2589.5,0.01886203]
[1646738707565,2.06846844,2589.9,2589.5,0.01886203]
[1646738707767,0.0032491,2589.7,2589.5,0.01886203]
[1646738708571,0.94036844,2589.9,2589.5,0.01886203]
[1646738708973,0.0032491,2589.7,2589.5,0.01886203]
[1646738709173,0.0032491,2589.7,2589.4,0.96586]
[1646738709371,0.0032491,2589.7,2589.3,0.3]
[1646738709614,0.0032491,2589.7,2589.2,1.93165]
[1646738709813,0.94036844,2589.8,2589.1,0.3]
[1646738710015,0.0032491,2589.7,2589.0,2.23182]
[1646738710215,0.0032491,2589.7,2589.0,1.93182]
[1646738710915,0.96208835,2589.4,2588.8,5.10333]
[1646738711116,0.96208835,2589.4,2588.8,4.16383]
[1646738712215,0.96208835,2589.4,2588.8,3.86383]
[1646738712416,0.00355286,2589.2,2588.8,3.86383]
[1646738712817,0.00355286,2589.2,2588.9,0.96599]
[1646738713017,0.00355286,2589.2,2588.9,2.8978097]
[1646738713470,2.17666844,2589.6,2588.9,1.9318197]
[1646738713471,1.2363,2589.6,2588.9,1.9318197]
[1646738713670,0.00355286,2589.2,2589.1,0.01795827]
[1646738714472,0.00355286,2589.2,2589.1,0.98391827]
[1646738714671,0.94036844,2589.7,2589.1,0.98391827]
[1646738714873,0.00387474,2589.3,2589.1,0.98391827]
[1646738715071,0.00387474,2589.3,2589.1,0.01795827]
[1646738715873,0.94036844,2589.7,2589.1,0.01795827]
[1646738716073,0.00387474,2589.3,2589.1,0.01795827]
[1646738716974,1.00932143,2589.8,2589.1,0.01795827]
[1646738717215,0.00387474,2589.3,2589.1,0.01795827]
[1646738718217,1.39542143,2589.8,2589.1,0.01795827]
[1646738718422,0.00387474,2589.3,2589.1,0.01795827]
[1646738718821,0.00387474,2589.3,2588.9,0.966]
[1646738719222,0.00387474,2589.3,2589.0,2.23171]
[1646738719424,1.1762,2589.9,2589.0,5.73171]
[1646738719721,0.00387474,2589.2,2589.0,5.73171]
[1646738719921,0.00387474,2589.2,2589.0,2.23171]
[1646738720322,0.00387474,2589.2,2589.1,1.57857023]
[1646738720522,2.34038356,2589.9,2589.1,1.57857023]
[1646738721367,3.75357652,2589.9,2589.1,1.57857023]
[1646738722168,0.0038684,2589.6,2589.1,51.57753369]
[1646738722365,0.0038684,2589.6,2589.1,50.0]
[1646738722967,3.75357652,2589.9,2589.1,50.0]
[1646738723167,0.0038684,2589.5,2589.1,50.0]
[1646738724172,3.75357652,2589.9,2589.1,50.0]
[1646738724614,0.0038684,2589.4,2589.1,50.0]
[1646738725315,2.34038356,2589.9,2589.1,50.0]
[1646738725716,0.0038684,2589.4,2589.1,50.9659]
[1646738725919,0.0038684,2589.4,2589.3,0.3861]
[1646738726120,0.00096,2590.1,2589.4,2.32277973]
[1646738726315,2.13273722,2590.2,2589.4,2.62277973]
[1646738726514,2.13273722,2590.2,2589.4,2.23667973]
[1646738726716,3.36401312,2590.2,2589.4,2.23667973]
[1646738727115,1.2312759,2590.2,2589.5,0.96562]
[1646738727418,1.2312759,2590.2,2589.6,0.3]
[1646738727819,1.2312759,2590.2,2589.5,0.3]
[1646738728017,1.2312759,2590.2,2589.5,3.8]
[1646738728218,1.1693,2590.3,2589.7,0.9656176]
[1646738729071,1.1693,2590.3,2589.7,1.9312476]
[1646738729273,1.1693,2590.3,2589.7,0.96563]
[1646738729980,0.98033464,2590.2,2589.7,0.96563]
[1646738730172,1.1693,2590.3,2589.7,0.96563]
[1646738730573,0.00385873,2590.1,2589.6,0.3]
[1646738730772,0.00385873,2590.1,2589.5,0.3]
[1646738731171,1.20935143,2590.1,2589.5,0.3]
[1646738731374,1.2054927,2590.1,2589.5,0.3]
[1646738731576,0.00385873,2589.9,2589.5,0.3]
[1646738731772,0.00385873,2589.9,2589.4,4.16791713]
[1646738731973,0.00385873,2589.9,2589.4,2.23667713]
[1646738732621,2.61868566,2590.1,2589.4,2.23667713]
[1646738732819,0.00385873,2589.8,2589.4,2.23667713]
[1646738733823,1.19935143,2590.1,2589.4,2.23667713]
[1646738734021,0.00385873,2589.7,2589.4,2.23667713]
[1646738734222,0.00385873,2589.7,2589.4,3.20237713]
[1646738735022,0.00096,2590.2,2589.4,3.20237713]
[1646738735225,0.00115751,2589.9,2589.4,6.70237713]
[1646738735423,0.00115751,2589.9,2589.6,1.9312461]
[1646738736271,1.17026,2590.3,2589.6,1.9312461]
[1646738736472,0.0011576,2589.9,2589.7,0.3]
[1646738736672,0.0011576,2589.9,2589.8,0.9655741]
[1646738737474,1.1693,2590.3,2589.8,0.9655741]
[1646738737777,0.00115762,2590.0,2589.8,0.9655741]
[1646738738679,1.1693,2590.3,2589.8,0.9655741]
[1646738738880,0.00384908,2590.0,2589.8,0.9655741]
[1646738739918,2.13273722,2590.4,2589.8,4.4655741]
[1646738740118,0.00384908,2590.0,2589.8,4.4655741]
[1646738740323,0.00384908,2590.0,2589.9,3.5]
[1646738740517,0.00384908,2590.0,2589.8,1.3516741]
[1646738740717,0.00384908,2590.0,2589.8,5.8171441]
[1646738740918,0.00096,2590.5,2589.8,5.8171441]
[1646738741117,1.1523,2590.6,2590.0,0.9654448]
[1646738741516,1.1523,2590.6,2590.0,1.5654448]
[1646738741716,1.1523,2590.6,2590.0,2.5308948]
[1646738742517,0.00384908,2590.4,2590.0,2.5308948]
[1646738743381,1.14234812,2590.7,2590.0,2.5308948]
[1646738743773,0.00384908,2590.3,2590.0,2.5308948]
[1646738744577,1.14234812,2590.7,2590.0,2.5308948]
[1646738744978,0.00384908,2590.3,2590.0,2.5308948]
[1646738745679,0.00384908,2590.3,2590.0,1.5654448]
[1646738745880,1.14234812,2590.7,2590.0,0.6]
[1646738746176,0.00384908,2590.3,2590.0,0.6]
[1646738746376,0.00384908,2590.3,2589.8,0.3]
[1646738746579,0.00384908,2590.3,2589.9,1.57814369]
[1646738746978,0.00384908,2590.3,2589.8,0.3]
[1646738746979,1.52940812,2590.7,2589.8,0.3]
[1646738747218,0.00384908,2590.2,2589.8,0.3]
[1646738747617,0.00384908,2590.2,2589.6,1.4629]
[1646738747818,0.00384908,2590.2,2589.7,1.57831207]
[1646738748221,0.88774774,2590.2,2589.7,1.57831207]
[1646738748425,0.00384908,2590.0,2589.7,1.57831207]
[1646738749424,0.88774774,2590.2,2589.7,1.57831207]
[1646738749625,0.00384908,2590.0,2589.7,1.57831207]
[1646738749829,1.93144,2589.8,2589.7,1.57831207]
[1646738750028,2.89761,2589.9,2589.4,0.00543973]
[1646738750227,2.89761,2589.9,2589.5,1.57837231]
[1646738750424,2.89761,2589.9,2589.4,0.00543973]
[1646738750883,0.88870594,2589.6,2589.4,0.00543973]
[1646738752075,0.96585,2589.7,2589.4,0.00543973]
[1646738753982,0.96585,2589.7,2589.5,1.5783104]
[1646738755619,0.96585,2589.7,2589.5,1.57707736]
[1646738755818,0.96585,2589.7,2589.4,0.00543973]
[1646738756020,0.9657,2589.9,2589.4,0.00543973]
[1646738756318,2.01991989,2589.9,2589.4,0.00543973]
[1646738756919,2.02377566,2589.9,2589.4,0.00543973]
[1646738757920,2.01991989,2589.9,2589.4,0.00543973]
[1646738758120,2.02377566,2589.9,2589.4,0.00543973]
[1646738758978,2.01991989,2589.9,2589.4,0.00543973]
[1646738759379,2.02377566,2589.9,2589.4,0.00543973]
[1646738759779,0.96955577,2589.9,2589.4,0.97110973]
[1646738760181,0.9657,2589.9,2589.4,1.27110973]
[1646738760384,0.9657,2589.9,2589.5,3.5]
[1646738760581,0.96955577,2589.9,2589.5,3.5]
[1646738760783,0.00385577,2589.9,2589.5,3.5]
[1646738761385,0.9656,2590.3,2589.5,3.5]
[1646738761583,0.9656,2590.3,2589.6,0.96553]
[1646738761784,0.00385585,2589.9,2589.6,0.96553]
[1646738762624,0.9656,2590.2,2589.6,0.96553]
[1646738762825,0.00385592,2589.9,2589.6,0.96553]
[1646738763929,0.96517084,2590.0,2589.6,0.98593568]
[1646738764130,0.00385592,2589.9,2589.6,0.02040568]
[1646738765130,0.96575,2589.9,2589.6,0.02040568]
[1646738765328,0.96960592,2589.9,2589.6,0.02040568]
[1646738766171,0.96575,2589.9,2589.6,0.02040568]
[1646738766569,0.96960592,2589.9,2589.6,0.02040568]
[1646738767374,0.96575,2589.9,2589.6,0.02040568]
[1646738767576,1.93146,2590.2,2589.6,0.02040568]
[1646738767775,0.00385592,2589.9,2589.7,0.96561]
[1646738767976,0.00385592,2589.9,2589.7,1.26561]
[1646738768574,3.11318527,2590.2,2589.7,1.26561]
[1646738768774,1.08709597,2589.8,2589.7,1.26561]
[1646738768977,1.08709597,2589.8,2589.7,0.3]
[1646738769176,1.08709597,2589.8,2589.6,0.02040568]
[1646738769619,0.969556,2589.9,2589.6,0.02040568]
[1646738769823,0.9657,2589.9,2589.6,0.02040568]
[1646738770023,0.96955585,2589.9,2589.6,0.01407068]
[1646738771125,0.9657,2589.9,2589.6,0.01407068]
[1646738771325,0.96955592,2589.9,2589.6,0.01407068]
[1646738772327,0.9657,2589.9,2589.6,0.01407068]
[1646738772527,0.96955592,2589.9,2589.6,0.01407068]
[1646738773376,0.9657,2589.9,2589.6,0.01407068]
[1646738773770,0.96955592,2589.9,2589.6,0.01407068]
[1646738774572,0.9657,2589.9,2589.6,0.01407068]
[1646738774772,0.9657,2589.9,2589.6,0.02051396]
[1646738774973,0.96955592,2589.9,2589.6,0.02051396]
[1646738775372,0.00385592,2589.9,2589.6,0.02051396]
[1646738775773,2.15221,2590.3,2589.7,1.57813785]
[1646738775973,2.15221,2590.3,2589.7,2.54370785]
[1646738776173,0.00385592,2589.9,2589.8,1.57813785]
[1646738777119,0.96562,2590.2,2589.7,1.57813785]
[1646738777320,0.003856,2590.0,2589.8,1.57813785]
[1646738777520,0.003856,2590.0,2589.6,0.02051396]
[1646738777726,0.96568,2589.9,2589.7,1.57822403]
[1646738778124,0.96568,2589.9,2589.6,0.02051396]
[1646738778125,0.99633546,2589.8,2589.6,0.02051396]
[1646738778328,0.99633546,2589.8,2589.7,1.57825668]
[1646738778926,0.99633546,2589.8,2589.6,0.02051396]
[1646738779128,0.99633546,2589.8,2589.4,0.00543973]
[1646738779428,2.92803546,2589.8,2589.5,1.5784575]
[1646738780726,2.92803546,2589.8,2589.4,0.00543973]
[1646738781772,1.9317,2589.8,2589.4,0.00543973]
[1646738781975,1.9317,2589.8,2589.5,1.57841321]
[1646738783373,0.96953577,2589.9,2589.5,1.57841321]
[1646738783978,0.96953577,2589.9,2589.5,1.59849402]
[1646738784178,0.96953577,2589.9,2589.6,1.57841321]
[1646738784378,0.00096,2590.3,2589.6,1.57841321]
[1646738784379,0.96658,2590.3,2589.6,1.57841321]
[1646738784625,0.00385585,2589.9,2589.7,3.5]
[1646738784821,0.00385585,2589.9,2589.8,1.57841321]
[1646738785221,0.00385585,2589.9,2589.7,1.57841321]
[1646738785423,0.00096,2590.4,2589.7,1.57841321]
[1646738785623,0.96558,2590.3,2589.7,2.54391321]
[1646738785823,0.003856,2590.0,2589.8,1.57841321]
[1646738786632,0.9558785,2590.5,2589.8,1.57841321]
[1646738786830,0.9549185,2590.5,2589.8,1.57841321]
[1646738787031,0.003856,2590.0,2589.8,1.57841321]
[1646738787830,0.96563,2590.2,2589.9,1.57841321]
[1646738788029,0.96563,2590.2,2589.5,0.02008081]
[1646738788234,1.9313,2590.3,2589.6,1.57821021]
[1646738788235,0.003856,2590.0,2589.6,1.57821021]
[1646738789180,0.96568,2589.9,2589.6,1.57821021]
[1646738789381,0.969536,2589.9,2589.6,1.57821021]
[1646738789580,0.969536,2589.9,2589.7,1.57821021]
[1646738789882,0.969536,2589.9,2589.8,1.57821021]
[1646738790281,0.96568,2589.9,2589.8,1.57821021]
[1646738790483,0.969536,2589.9,2589.5,1.57821021]
[1646738791585,0.96568,2589.9,2589.5,1.57821021]
[1646738791782,0.96953585,2589.9,2589.5,1.57821021]
[1646738792617,0.96568,2589.9,2589.5,1.57821021]
[1646738793017,0.96953585,2589.9,2589.5,1.57821021]
[1646738793821,0.96568,2589.9,2589.6,0.02005373]
[1646738794123,0.96953585,2589.9,2589.7,1.57821021]
[1646738795123,0.96568,2589.9,2589.7,1.57821021]
[1646738795323,0.969536,2589.9,2589.7,1.57821021]
[1646738795723,0.003856,2589.9,2589.7,1.57821021]
[1646738795985,0.003856,2589.9,2589.8,3.5]
[1646738796184,0.96553,2590.2,2589.8,5.07821021]
[1646738796385,0.96553,2590.2,2589.9,1.57821021]
[1646738797688,0.969386,2590.2,2590.0,1.57821021]
[1646738797885,0.969386,2590.2,2590.1,1.57821021]
[1646738798685,0.969386,2590.2,2589.6,17.25104373]
[1646738798686,0.96553,2590.2,2589.7,13.37821021]
[1646738798887,0.96553,2590.2,2589.8,1.57821021]
[1646738799186,0.96553,2590.2,2589.8,1.5982098]
[1646738799486,0.96553,2590.2,2589.9,1.57821021]
[1646738800117,0.003856,2590.1,2589.9,1.57821021]
[1646738801116,0.96553,2590.2,2589.9,1.57821021]
[1646738801320,0.003718,2590.1,2589.9,1.57821021]
[1646738802022,0.003718,2590.1,2589.8,0.01999959]
[1646738802220,0.96553,2590.2,2589.8,0.01999959]
[1646738802423,0.98940114,2589.9,2589.8,0.01914497]
[1646738803023,0.98940114,2589.9,2589.8,1.5974663]
[1646738803476,2.19803,2590.2,2589.8,1.5974663]
[1646738803678,0.96553,2590.2,2589.8,0.01914497]
[1646738803876,0.003718,2590.0,2589.8,0.01914497]
[1646738804077,0.003718,2590.0,2589.9,1.57826994]
[1646738804677,0.96562,2590.1,2589.5,1.57826994]
[1646738804876,0.969476,2590.1,2589.5,1.57826994]
[1646738805877,0.96562,2590.1,2589.5,1.57826994]
[1646738806177,0.003856,2589.9,2589.5,1.57826994]
[1646738807221,0.96562,2590.1,2589.5,1.57826994]
[1646738807424,0.00385585,2589.9,2589.5,13.37826994]
[1646738807622,0.00385585,2589.9,2589.6,1.57826994]
[1646738807821,0.00385585,2589.9,2589.6,5.07826994]
[1646738808025,0.00385585,2589.9,2589.7,1.57826994]
[1646738808322,1.198,2590.3,2589.9,0.00593698]
[1646738808526,1.198,2590.3,2590.0,1.57826994]
[1646738808726,7.15989,2590.5,2590.0,1.57826994]
[1646738808727,0.96556,2590.2,2590.0,1.57826994]
[1646738812572,1.21586,2590.8,2590.1,3.5]
[1646738812773,1.2149,2590.8,2590.2,1.57826994]
[1646738813183,1.2149,2590.8,2590.1,1.87826994]
[1646738813376,1.2149,2590.8,2590.2,1.57826994]
[1646738813878,1.2149,2590.8,2590.3,1.57826994]
[1646738814079,1.2149,2590.8,2590.4,1.57826994]
[1646738814281,0.96534,2591.0,2590.5,1.57826994]
[1646738814477,0.96534,2591.0,2590.1,1.4263]
[1646738814721,0.96534,2591.0,2590.2,1.57794553]
[1646738815724,0.00385038,2590.7,2590.2,1.57794553]
[1646738815924,2.02752383,2590.7,2590.2,1.57794553]
[1646738816726,2.02367345,2590.7,2590.2,1.57794553]
[1646738816927,0.00385038,2590.6,2590.2,1.57794553]
[1646738817830,0.9654,2590.7,2590.2,1.57794553]
[1646738818233,0.00385038,2590.5,2590.2,1.57794553]
[1646738818977,0.00385038,2590.5,2590.2,5.07794553]
[1646738819180,0.96625,2591.1,2590.3,1.57794553]
[1646738819376,0.00385038,2590.5,2590.3,1.57794553]
[1646738820380,0.9654,2591.0,2590.3,1.57794553]
[1646738820581,0.00385038,2590.5,2590.3,1.57794553]
[1646738821580,0.9654,2591.0,2590.3,1.57794553]
[1646738821778,0.00385038,2590.5,2590.3,1.57794553]
[1646738822623,0.00385038,2590.5,2590.4,3.5]
[1646738822827,0.00096,2591.1,2590.4,17.87794553]
[1646738823026,1.1724,2591.2,2590.4,27.36256249]
[1646738823027,0.00385038,2590.5,2590.4,27.36256249]
[1646738823228,0.00385038,2590.5,2590.4,31.68554725]
[1646738823435,7.30539183,2592.2,2590.8,11.8]
[1646738823629,0.01539183,2592.2,2591.3,0.7048818]
[1646738823834,0.01539183,2592.2,2591.5,1.35081]
[1646738824030,0.00096,2592.6,2591.6,20.34356981]
[1646738824229,0.00096,2592.8,2591.8,11.8]
[1646738824431,0.00096,2593.1,2592.3,1.9286618]
[1646738824630,0.3861,2593.5,2592.4,16.87756981]
[1646738824831,1.41319296,2593.7,2592.6,0.96434]
[1646738825030,3.87559296,2593.9,2592.7,1.57756981]
[1646738825230,3.87559296,2593.9,2592.7,5.07756981]
[1646738825431,2.4624,2593.9,2592.8,1.57756981]
[1646738825632,0.3861,2593.7,2592.7,1.0]
[1646738825889,0.3861,2593.7,2592.6,1.3]
[1646738826077,0.3861,2593.7,2592.6,1.0]
[1646738826275,0.3861,2593.7,2592.4,3.8]
[1646738826475,0.96444,2593.6,2592.4,3.5]
[1646738826675,0.96444,2593.6,2592.5,11.8]
[1646738826877,0.96444,2593.6,2592.6,3.5]
[1646738827076,0.38706,2593.7,2592.6,3.5]
[1646738827275,0.38706,2593.7,2592.6,4.5]
[1646738827475,0.38706,2593.7,2592.6,3.5]
[1646738827675,0.3861,2593.6,2592.6,4.5]
[1646738827876,0.00385456,2593.3,2592.6,4.5]
[1646738828081,0.00385456,2593.3,2592.7,0.96432]
[1646738828281,0.00385456,2593.3,2592.8,1.26429]
[1646738828482,0.00385456,2593.3,2592.8,0.3]
[1646738828687,0.00385456,2593.3,2592.4,1.0]
[1646738828688,1.35067,2593.2,2592.4,1.0]
[1646738829181,1.35067,2593.2,2592.0,15.43238653]
[1646738829182,1.35452456,2593.2,2592.0,15.43238653]
[1646738829382,1.35548456,2593.2,2592.8,0.02080441]
[1646738829621,0.87107331,2592.9,2592.8,0.02080441]
[1646738830222,0.00385456,2593.1,2592.8,0.02080441]
[1646738831227,0.3861,2593.2,2592.8,0.02080441]
[1646738831228,1.30803367,2593.2,2592.8,0.02080441]
[1646738831426,0.00385456,2593.1,2592.8,0.02080441]
[1646738832324,1.30803367,2593.2,2592.8,0.02080441]
[1646738832526,0.00116029,2593.1,2592.8,0.02080441]
[1646738833380,0.00116029,2593.1,2592.9,14.07168093]
[1646738833576,2.27263367,2593.2,2592.9,14.07168093]
[1646738833779,0.00116029,2593.1,2593.0,0.02074342]
[1646738834778,3.5,2593.1,2593.0,0.02074342]
[1646738835179,1.88769396,2593.2,2593.0,0.02074342]
[1646738835981,3.5,2593.1,2593.0,0.02074342]
[1646738836181,3.5,2593.1,2591.3,0.386]
[1646738836182,0.96482,2592.7,2591.3,0.386]
[1646738836385,3.5,2592.6,2590.9,2.8836]
[1646738836581,0.85125179,2592.5,2591.0,3.95822693]
[1646738836782,0.38525179,2592.3,2590.9,2.8836]
[1646738836983,0.38525179,2592.1,2590.9,2.8836]
[1646738837231,0.9651,2591.6,2590.9,2.8836]
[1646738837432,0.24272674,2591.8,2590.8,0.96503]
[1646738837632,0.62797853,2591.8,2590.8,0.96503]
[1646738837850,0.62797853,2591.8,2590.6,0.00685458]
[1646738837851,3.88525179,2591.7,2590.6,0.00685458]
[1646738838035,3.88621179,2591.7,2590.6,0.00685458]
[1646738838236,6.13721179,2591.7,2590.6,0.00685458]
[1646738838735,4.82598,2592.2,2592.1,38.29307777]
[1646738838938,6.26504155,2592.2,2592.1,10.00700635]
[1646738839134,3.3861,2592.1,2590.8,3.5]
[1646738839338,6.7497,2592.1,2590.6,0.00685458]
[1646738839534,0.3861,2591.9,2590.6,0.00685458]
[1646738840336,1.03266291,2591.4,2590.6,0.97195458]
[1646738840738,0.3861,2591.7,2590.6,0.97195458]
[1646738841000,0.00386136,2591.4,2590.6,0.97195458]
[1646738841200,0.00386136,2591.4,2590.6,1.93703458]
[1646738841401,0.00386136,2591.4,2590.8,0.96504]
[1646738841603,0.00386136,2591.4,2590.9,3.5]
[1646738841801,0.00386136,2591.4,2591.0,0.87129958]
[1646738842004,1.21861437,2592.1,2591.1,3.5]
[1646738842201,1.21861437,2592.1,2591.2,0.96485]
[1646738842404,1.21861437,2592.1,2591.3,3.5]
[1646738842804,1.21861437,2592.1,2591.3,4.5]
[1646738843305,1.21861437,2592.1,2591.3,3.5]
[1646738843706,1.21861437,2592.1,2591.3,4.46485]
[1646738844725,0.00386816,2591.8,2591.3,4.46485]
[1646738845126,0.00386816,2591.8,2591.3,1.92973]
[1646738845625,1.21861437,2592.1,2591.3,0.96488]
[1646738845832,0.00386816,2591.7,2591.4,3.5]
[1646738846029,0.00386816,2591.7,2591.3,1.92965]
[1646738846230,0.00386816,2591.7,2591.4,3.8]
[1646738846432,0.00386816,2591.7,2591.4,0.3]
[1646738846632,0.00386816,2591.7,2591.4,1.3]
[1646738846830,0.00096,2592.5,2591.4,3.8]
[1646738847031,3.625,2592.6,2591.4,3.8]
[1646738847032,0.00386816,2591.7,2591.4,3.8]
[1646738847230,0.00386816,2591.7,2591.4,5.7647385]
[1646738847430,0.00386816,2591.7,2591.5,0.96474]
[1646738847830,0.00386816,2591.7,2591.5,1.98179207]
[1646738848032,0.00096,2592.4,2591.6,4.46474]
[1646738848235,0.00386816,2591.7,2591.6,7.0294085]
[1646738849081,0.00386816,2591.7,2591.6,8.60608367]
[1646738849285,0.00096,2592.3,2591.9,0.96469]
[1646738849485,0.01547033,2592.2,2591.9,0.96469]
[1646738849685,0.01547033,2592.2,2591.9,1.56469]
[1646738850384,1.1497916,2592.6,2591.9,1.26469]
[1646738850585,0.00386816,2592.2,2591.9,1.26469]
[1646738851388,0.00386816,2592.2,2591.9,2.91543]
[1646738851585,0.96562,2593.0,2591.9,3.52933]
[1646738851790,0.00386816,2592.2,2591.9,6.06469]
[1646738851986,0.00386816,2592.2,2591.9,2.56469]
[1646738852233,0.00386816,2592.2,2592.0,1.92927]
[1646738852636,0.00386816,2592.2,2592.0,2.22927]
[1646738852836,1.16683487,2592.7,2592.0,2.22927]
[1646738853033,0.96562,2593.0,2592.0,5.72927]
[1646738853034,0.00386816,2592.2,2592.0,5.72927]
[1646738853246,0.00386816,2592.2,2592.0,16.37998]
[1646738853834,0.00386816,2592.2,2592.0,15.41537]
[1646738854033,1.05712396,2592.7,2592.0,15.41537]
[1646738854536,2.96066,2593.2,2592.0,15.41537]
[1646738854734,2.96066,2593.2,2592.0,3.91537]
[1646738854933,2.96066,2593.2,2592.0,7.11537]
[1646738855136,3.92525,2593.2,2592.0,7.11537]
[1646738855341,2.96066,2593.2,2592.1,1.35068]
[1646738855636,2.96066,2593.2,2592.3,0.96432]
[1646738855890,2.9597,2593.2,2592.0,1.6]
[1646738856189,0.96463,2593.1,2592.0,0.3]
[1646738856392,0.3861,2593.0,2592.0,0.3]
[1646738856591,0.00387496,2592.7,2591.7,3.90249341]
[1646738856792,0.00387496,2592.7,2592.1,0.96472]
[1646738857493,0.00096,2592.9,2592.1,0.96472]
[1646738857691,0.9647,2593.0,2592.1,0.96472]
[1646738857894,0.00387496,2592.5,2592.1,0.96472]
[1646738858091,0.01549752,2592.9,2592.6,0.00622354]
[1646738858092,0.01645752,2592.9,2592.6,0.00622354]
[1646738858294,0.01549752,2592.9,2592.6,0.97068354]
[1646738858792,1.22266,2593.4,2592.6,0.97068354]
[1646738858992,2.06819996,2593.6,2592.6,0.97068354]
[1646738859191,2.06723996,2593.6,2592.6,0.00622354]
[1646738859393,1.00846686,2593.5,2592.6,0.00622354]
[1646738859651,0.02778108,2593.2,2592.6,3.50622354]
[1646738859839,0.02778108,2593.2,2592.6,5.47066354]
[1646738860036,0.02778108,2593.2,2592.6,51.97066354]
[1646738860436,0.02778108,2593.2,2592.7,1.57617222]
[1646738860640,0.02778108,2593.2,2592.6,51.97066354]
[1646738861037,0.02778108,2593.2,2592.6,51.00622354]
[1646738861238,0.00630685,2592.7,2592.6,51.30622354]
[1646738863581,0.00630685,2592.7,2592.6,50.00622354]
[1646738867273,0.02837847,2593.1,2592.6,50.00622354]
[1646738867475,0.00386917,2592.8,2592.6,50.00622354]
[1646738868477,0.02837847,2593.1,2592.6,50.00622354]
[1646738868680,0.00386917,2592.8,2592.6,50.00622354]
[1646738869480,0.03384794,2592.7,2592.6,50.00622354]
[1646738883038,0.03384794,2592.7,2592.6,50.00472608]
[1646738885141,0.01432385,2593.2,2592.8,0.06105885]
[1646738885441,0.00096,2593.5,2592.9,1.5762495]
[1646738885645,0.01432385,2593.2,2592.9,1.5762495]
[1646738886093,0.01432385,2593.2,2592.8,2.28983885]
[1646738886395,0.01432385,2593.2,2592.9,0.96439]
[1646738886595,4.55232995,2593.6,2592.9,0.96439]
[1646738886796,4.55232995,2593.6,2592.8,2.28983885]
[1646738886996,4.55232995,2593.6,2592.8,0.36105885]
[1646738887499,5.90296995,2593.6,2592.8,0.06105885]
[1646738887897,0.00116075,2593.3,2592.8,0.06105885]
[1646738888901,1.12728383,2593.2,2592.8,0.06105885]
[1646738889100,3.5,2593.1,2592.8,0.06105885]
[1646738889299,1.13073689,2593.2,2593.0,0.02265096]
[1646738890136,2.09197383,2593.2,2593.0,0.02265096]
[1646738890336,2.09542689,2593.2,2593.0,0.02265096]
[1646738891341,3.5,2593.1,2593.0,0.02265096]
[1646738892843,2.09542689,2593.2,2593.0,0.02265096]
[1646738893692,3.5,2593.1,2593.0,0.02265096]
[1646738893891,2.09518443,2593.2,2593.0,0.02265096]
[1646738894494,4.91319296,2593.1,2593.0,0.02265096]
[1646738894695,3.5,2593.1,2593.0,0.02265096]
[1646738895296,4.91319296,2593.1,2593.0,0.02265096]
[1646738895497,6.37919296,2593.1,2593.0,0.02265096]
[1646738895696,7.37919296,2593.1,2593.0,0.02265096]
[1646738895897,5.966,2593.1,2593.0,0.02265096]
[1646738896298,7.38015952,2593.1,2593.0,0.02265096]
[1646738896499,2.466,2593.1,2593.0,0.02265096]
[1646738896902,1.466,2593.1,2593.0,0.02265096]
[1646738897147,0.466,2593.1,2593.0,0.02265096]